bitfinex-derivatives/quotes_BTCF0:USTF0_20241103
["timestamp","ask_amount","ask_price","bid_price","bid_amount"]
[1730638237259,0.072932,68582.0,68581.0,0.07493]
[1730638238760,0.072932,68582.0,68581.0,0.13286959]
[1730638238956,0.072932,68582.0,68581.0,0.07493]
[1730638239165,0.072932,68582.0,68581.0,0.13286959]
[1730638240659,0.072932,68582.0,68581.0,0.05993959]
[1730638240859,0.072932,68582.0,68581.0,0.002]
[1730638241070,0.072932,68582.0,68581.0,0.04546999]
[1730638244368,0.072932,68582.0,68581.0,0.002]
[1730638245061,0.4738482,68582.0,68581.0,0.002]
[1730638245972,0.5201706,68582.0,68581.0,0.002]
[1730638246770,1.2112882,68582.0,68567.0,0.0303]
[1730638247070,1.2112882,68582.0,68564.0,0.072949]
[1730638247071,0.072949,68565.0,68564.0,0.072949]
[1730638247271,0.072949,68565.0,68564.0,0.11757228]
[1730638247671,0.072949,68565.0,68564.0,0.04462328]
[1730638247975,0.072951,68563.0,68562.0,0.00218745]
[1730638250267,0.072951,68563.0,68562.0,0.01418745]
[1730638251181,0.072951,68563.0,68562.0,0.01118745]
[1730638251677,0.072951,68563.0,68562.0,0.00718745]
[1730638251885,0.072951,68563.0,68562.0,0.00918745]
[1730638252179,0.072951,68563.0,68562.0,0.00718745]
[1730638254584,0.072951,68563.0,68562.0,0.002]
[1730638254780,0.072951,68563.0,68562.0,0.005]
[1730638258276,0.510511,68563.0,68562.0,0.005]
[1730638259384,0.072964,68550.0,68549.0,0.04347068]
[1730638259586,0.072966,68549.0,68548.0,0.04565886]
[1730638259886,0.072966,68549.0,68548.0,0.00218818]
[1730638261287,0.072966,68549.0,68548.0,0.01618818]
[1730638262183,0.072966,68549.0,68548.0,0.03018818]
[1730638263684,0.072966,68549.0,68548.0,0.028]
[1730638264782,0.133366,68549.0,68548.0,0.028]
[1730638264994,0.571006,68549.0,68548.0,0.028]
[1730638265193,0.133366,68549.0,68548.0,0.028]
[1730638265711,0.072975,68541.0,68533.0,0.00218875]
[1730638265888,0.072982,68534.0,68533.0,0.00218875]
[1730638266879,0.072982,68534.0,68533.0,0.01618875]
[1730638268594,0.072982,68534.0,68533.0,0.02518875]
[1730638269199,0.072982,68534.0,68533.0,0.023]
[1730638269381,0.510742,68534.0,68533.0,0.023]
[1730638269691,0.510742,68534.0,68533.0,0.014]
[1730638269692,0.511742,68534.0,68533.0,0.014]
[1730638271190,0.073982,68534.0,68533.0,0.014]
[1730638272087,0.511742,68534.0,68533.0,0.014]
[1730638272280,0.544742,68534.0,68533.0,0.014]
[1730638274496,0.58925432,68534.0,68533.0,0.014]
[1730638280095,0.15149432,68534.0,68533.0,0.014]
[1730638285893,0.072987,68529.0,68528.0,0.07296286]
[1730638286215,0.526267,68529.0,68528.0,0.07296286]
[1730638286791,0.964027,68529.0,68528.0,0.07296286]
[1730638287202,0.965027,68529.0,68528.0,0.08196286]
[1730638288396,0.965027,68529.0,68517.0,0.04347068]
[1730638288397,0.072998,68519.0,68517.0,0.04347068]
[1730638288597,0.526279,68518.0,68517.0,0.04347068]
[1730638289307,0.526279,68518.0,68517.0,0.04350146]
[1730638289696,0.526279,68518.0,68516.0,0.04350146]
[1730638289697,0.45328,68518.0,68516.0,0.04350146]
[1730638289903,0.073,68517.0,68516.0,0.04350146]
[1730638290206,0.073,68517.0,68515.0,0.04350146]
[1730638290399,0.073001,68516.0,68515.0,0.04350146]
[1730638290603,0.073,68517.0,68512.0,0.05793959]
[1730638290808,0.073004,68513.0,68512.0,0.05793959]
[1730638291004,0.073005,68512.0,68511.0,0.05793959]
[1730638291207,0.073006,68511.0,68510.0,0.12343959]
[1730638291512,0.073006,68511.0,68510.0,0.12351409]
[1730638292012,0.073006,68511.0,68510.0,0.0323]
[1730638292796,0.074006,68511.0,68510.0,0.0323]
[1730638293006,0.074006,68511.0,68510.0,0.0413]
[1730638293007,0.075006,68511.0,68510.0,0.0413]
[1730638293308,0.075006,68511.0,68510.0,0.009]
[1730638295511,0.075006,68511.0,68510.0,0.05253185]
[1730638295712,0.075006,68511.0,68510.0,0.009]
[1730638296211,0.074006,68511.0,68510.0,0.009]
[1730638296406,0.002,68511.0,68508.0,0.04353185]
[1730638296613,0.073008,68509.0,68508.0,0.04353185]
[1730638297603,0.073009,68508.0,68507.0,0.04353185]
[1730638298006,0.073011,68506.0,68505.0,0.05801409]
[1730638298206,0.433811,68506.0,68503.0,0.073014]
[1730638299411,0.073013,68505.0,68503.0,0.073014]
[1730638299611,0.3628,68506.0,68503.0,0.080014]
[1730638299811,0.073013,68504.0,68503.0,0.080014]
[1730638300724,0.073013,68504.0,68503.0,0.007]
[1730638301716,0.3618,68506.0,68502.0,0.032]
[1730638302021,0.3618,68506.0,68505.0,0.05804278]
[1730638302224,0.434811,68506.0,68505.0,0.05804278]
[1730638302425,0.433811,68506.0,68505.0,0.05804278]
[1730638303324,0.434811,68506.0,68505.0,0.05804278]
[1730638304814,0.075011,68506.0,68505.0,0.06604278]
[1730638305223,0.435811,68506.0,68505.0,0.06604278]
[1730638306527,0.075011,68506.0,68505.0,0.06604278]
[1730638306822,0.435811,68506.0,68505.0,0.06604278]
[1730638307523,0.435811,68506.0,68505.0,0.008]
[1730638309214,0.075011,68506.0,68505.0,0.008]
[1730638313325,0.075011,68506.0,68505.0,0.08048593]
[1730638313733,0.075011,68506.0,68505.0,0.17522963]
[1730638314424,0.075011,68506.0,68505.0,0.1027437]
[1730638314917,0.075011,68506.0,68505.0,0.17542146]
[1730638315337,0.075011,68506.0,68505.0,0.1027437]
[1730638316041,0.075011,68506.0,68505.0,0.17545266]
[1730638316232,0.075011,68506.0,68505.0,0.1027437]
[1730638318538,0.075011,68506.0,68505.0,0.008]
[1730638319731,0.075011,68506.0,68505.0,0.10290878]
[1730638322231,0.075011,68506.0,68505.0,0.17592078]
[1730638322637,0.002,68506.0,68505.0,0.17592078]
[1730638322936,0.075011,68506.0,68505.0,0.17592078]
[1730638324141,0.075011,68506.0,68505.0,0.081012]
[1730638332043,0.075011,68506.0,68505.0,0.17536453]
[1730638333540,0.075011,68506.0,68505.0,0.24808841]
[1730638333847,0.075011,68506.0,68505.0,0.24808791]
[1730638334344,0.075011,68506.0,68505.0,0.17536453]
[1730638334548,0.075011,68506.0,68505.0,0.24808488]
[1730638334744,0.075011,68506.0,68505.0,0.081012]
[1730638337557,0.11207124,68506.0,68505.0,0.081012]
[1730638339258,0.075011,68506.0,68505.0,0.081012]
[1730638339646,0.11212857,68506.0,68505.0,0.081012]
[1730638340252,0.075011,68506.0,68505.0,0.081012]
[1730638342745,0.075011,68506.0,68505.0,0.1752912]
[1730638343350,0.002,68506.0,68505.0,0.1752912]
[1730638344153,0.0307,68531.0,68524.0,0.072992]
[1730638344361,0.072989,68528.0,68524.0,0.433792]
[1730638344664,0.072985,68531.0,68524.0,0.433792]
[1730638344845,0.072987,68529.0,68524.0,0.433792]
[1730638345355,0.072988,68528.0,68524.0,0.433792]
[1730638345552,0.00918979,68525.0,68524.0,0.49186572]
[1730638346065,0.01218979,68525.0,68524.0,0.49186572]
[1730638346454,0.01218979,68525.0,68524.0,0.433792]
[1730638346658,0.01218979,68525.0,68524.0,0.04354142]
[1730638346958,0.072995,68522.0,68521.0,0.072995]
[1730638347256,0.072995,68522.0,68521.0,0.11654171]
[1730638347552,0.072995,68522.0,68518.0,0.05807372]
[1730638347553,0.072996,68520.0,68519.0,0.04354671]
[1730638347956,0.3608,68521.0,68517.0,0.05807372]
[1730638348146,0.3608,68521.0,68516.0,0.04355558]
[1730638348147,0.073,68517.0,68516.0,0.04355558]
[1730638348350,0.073001,68516.0,68515.0,0.04355558]
[1730638349760,0.073001,68516.0,68513.0,0.13107672]
[1730638349950,0.001,68520.0,68510.0,0.0326]
[1730638349951,0.03780935,68515.0,68510.0,0.0326]
[1730638350151,0.072999,68519.0,68516.0,0.073]
[1730638350356,0.03792066,68518.0,68516.0,0.073]
[1730638350555,0.03792066,68517.0,68516.0,0.073]
[1730638351157,0.072995,68522.0,68521.0,0.072995]
[1730638351352,0.11103304,68522.0,68521.0,0.072995]
[1730638353966,0.11103304,68522.0,68516.0,0.004]
[1730638353967,0.03803804,68522.0,68516.0,0.004]
[1730638354152,0.072997,68520.0,68518.0,0.072998]
[1730638354353,0.03803804,68519.0,68518.0,0.072998]
[1730638354553,0.03805833,68519.0,68518.0,0.072998]
[1730638354954,0.11105633,68519.0,68518.0,0.072998]
[1730638355951,0.072998,68519.0,68518.0,0.072998]
[1730638356151,0.073,68517.0,68514.0,0.433803]
[1730638356353,0.073002,68515.0,68514.0,0.433803]
[1730638358170,0.0656,68524.0,68514.0,0.3608]
[1730638358464,0.0656,68524.0,68518.0,0.072998]
[1730638358665,0.0656,68524.0,68516.0,0.04355534]
[1730638358963,0.073,68517.0,68516.0,0.04355534]
[1730638359167,0.072993,68523.0,68516.0,0.04355555]
[1730638359464,0.0706,68524.0,68515.0,0.04355555]
[1730638359666,0.073001,68516.0,68515.0,0.04355555]
[1730638361158,0.073001,68516.0,68514.0,0.40435555]
[1730638361369,0.073001,68516.0,68514.0,0.3608]
[1730638361762,0.073001,68516.0,68514.0,0.433803]
[1730638361960,0.073001,68516.0,68514.0,0.47735855]
[1730638362170,0.073001,68516.0,68515.0,0.3608]
[1730638362466,0.073001,68516.0,68515.0,0.3658]
[1730638362467,0.074001,68516.0,68515.0,0.3658]
[1730638362674,0.074001,68516.0,68515.0,0.40935555]
[1730638364272,0.074001,68516.0,68515.0,0.3658]
[1730638364664,0.074001,68516.0,68515.0,0.47737281]
[1730638365165,0.11190232,68516.0,68515.0,0.433802]
[1730638365569,0.11090232,68516.0,68515.0,0.438802]
[1730638365768,0.11190232,68516.0,68515.0,0.438802]
[1730638371970,0.074001,68516.0,68515.0,0.438802]
[1730638372169,0.074001,68516.0,68515.0,0.005]
[1730638373379,0.074001,68516.0,68515.0,0.06314386]
[1730638373571,0.074001,68516.0,68515.0,0.005]
[1730638373778,0.001,68516.0,68515.0,0.078002]
[1730638374474,0.001,68516.0,68515.0,0.2440715]
[1730638374680,0.001,68516.0,68515.0,0.232273]
[1730638375478,0.001,68516.0,68515.0,0.3195112]
[1730638376096,0.001,68516.0,68515.0,0.31950266]
[1730638376282,0.001,68516.0,68515.0,0.232273]
[1730638376979,0.001,68516.0,68515.0,0.31950876]
[1730638377281,0.001,68516.0,68515.0,0.27590169]
[1730638377979,0.001,68516.0,68515.0,0.71374169]
[1730638378580,0.001,68516.0,68515.0,0.82454745]
[1730638379175,0.001,68516.0,68515.0,0.38670745]
[1730638380186,0.001,68516.0,68515.0,0.93351859]
[1730638381679,0.001,68516.0,68515.0,1.04405013]
[1730638381877,0.00218979,68525.0,68524.0,0.072992]
[1730638382189,0.00218979,68525.0,68524.0,0.433792]
[1730638383579,0.00518979,68525.0,68524.0,0.433792]
[1730638383981,0.01118979,68525.0,68524.0,0.433792]
[1730638387286,0.01118979,68525.0,68524.0,0.47809558]
[1730638394193,0.009,68525.0,68524.0,0.47809558]
[1730638395492,0.009,68525.0,68524.0,0.433792]
[1730638395688,0.081991,68525.0,68524.0,0.433792]
[1730638396381,0.081991,68525.0,68521.0,0.433795]
[1730638396585,0.072994,68522.0,68521.0,0.072995]
[1730638397594,0.072994,68522.0,68515.0,0.3608]
[1730638397804,0.073,68518.0,68517.0,0.072999]
[1730638398399,0.08258955,68518.0,68515.0,0.3608]
[1730638398624,0.073001,68516.0,68515.0,0.433802]
[1730638398902,0.11124043,68516.0,68515.0,0.433802]
[1730638399097,0.14274043,68516.0,68515.0,0.433802]
[1730638400694,0.18663689,68516.0,68515.0,0.433802]
[1730638401217,0.18663689,68516.0,68515.0,0.3608]
[1730638401218,0.14274043,68516.0,68515.0,0.3608]
[1730638401596,0.073009,68510.0,68509.0,0.073008]
[1730638401895,0.073009,68508.0,68507.0,0.3608]
[1730638402097,0.11124843,68508.0,68507.0,0.3608]
[1730638402893,0.08173847,68508.0,68501.0,0.07520548]
[1730638403197,0.073015,68503.0,68501.0,0.07520548]
[1730638403907,0.073015,68503.0,68502.0,0.16664391]
[1730638404196,0.073015,68503.0,68502.0,0.16698948]
[1730638404397,0.073015,68503.0,68502.0,0.23963481]
[1730638404593,0.073015,68503.0,68502.0,0.073016]
[1730638405098,0.10371,68507.0,68503.0,0.073014]
[1730638405299,0.10371,68507.0,68506.0,0.05811776]
[1730638405515,0.002,68508.0,68507.0,0.07301]
[1730638406001,0.001,68508.0,68507.0,0.07301]
[1730638406592,0.0934,68513.0,68512.0,0.073005]
[1730638406788,0.0315,68516.0,68513.0,0.073004]
[1730638407102,0.073003,68514.0,68513.0,0.073004]
[1730638407398,0.073003,68514.0,68513.0,0.11655839]
[1730638407606,0.073003,68514.0,68513.0,0.073004]
[1730638408404,0.073003,68514.0,68513.0,0.04355154]
[1730638409099,0.073003,68514.0,68510.0,0.13109478]
[1730638409298,0.074003,68514.0,68511.0,0.05808778]
[1730638409597,0.001,68514.0,68513.0,0.073004]
[1730638409994,0.002,68514.0,68513.0,0.080004]
[1730638411796,0.001,68514.0,68513.0,0.080004]
[1730638412097,0.002,68514.0,68513.0,0.49889178]
[1730638413298,0.002,68514.0,68513.0,0.49889645]
[1730638413501,0.002,68514.0,68513.0,0.440804]
[1730638414204,0.075003,68514.0,68513.0,0.440804]
[1730638418811,0.11308021,68514.0,68513.0,0.440804]
[1730638419202,0.075003,68514.0,68513.0,0.440804]
[1730638419394,0.11308022,68514.0,68513.0,0.440804]
[1730638421104,0.04007722,68514.0,68513.0,0.440804]
[1730638423512,0.002,68514.0,68513.0,0.440804]
[1730638423720,0.15742359,68514.0,68513.0,0.440804]
[1730638424812,0.15742359,68514.0,68513.0,0.3678]
[1730638425010,0.11308022,68514.0,68513.0,0.3678]
[1730638425399,0.15751774,68514.0,68513.0,0.3678]
[1730638425800,0.075003,68514.0,68513.0,0.3678]
[1730638429007,0.075003,68514.0,68513.0,0.007]
[1730638433915,0.075003,68514.0,68513.0,0.05059399]
[1730638434815,0.075003,68514.0,68513.0,0.007]
[1730638438018,0.075003,68514.0,68513.0,0.13812932]
[1730638438526,0.075003,68514.0,68513.0,0.13827125]
[1730638440416,0.075003,68514.0,68513.0,0.080004]
[1730638441030,0.20995277,68514.0,68513.0,0.080004]
[1730638441631,0.08572696,68514.0,68513.0,0.080004]
[1730638442023,0.0407437,68514.0,68513.0,0.080004]
[1730638442224,0.0407437,68514.0,68513.0,0.113104]
[1730638442434,0.002,68514.0,68513.0,0.113104]
[1730638442732,0.0407437,68514.0,68513.0,0.113104]
[1730638443232,0.0407437,68514.0,68513.0,0.15686475]
[1730638443424,0.0407437,68514.0,68513.0,0.59474475]
[1730638443640,0.002,68514.0,68513.0,0.59474475]
[1730638447337,0.002,68514.0,68513.0,0.15686475]
[1730638449033,0.002,68514.0,68513.0,0.3218097]
[1730638449635,0.002,68514.0,68513.0,0.95111008]
[1730638450531,0.002,68514.0,68513.0,0.51766475]
[1730638450726,0.002,68514.0,68513.0,0.87846475]
[1730638450932,0.002,68514.0,68513.0,0.15686475]
[1730638451143,0.002,68514.0,68513.0,1.04336305]
[1730638451632,0.002,68514.0,68513.0,1.31634475]
[1730638451830,0.002,68514.0,68513.0,1.38899008]
[1730638452030,0.002,68514.0,68513.0,0.95111008]
[1730638452531,0.002,68514.0,68513.0,0.87846475]
[1730638453728,0.002,68514.0,68513.0,0.95111008]
[1730638453924,0.002,68514.0,68513.0,1.38899008]
[1730638454134,0.002,68514.0,68513.0,0.87846475]
[1730638463448,0.002,68514.0,68513.0,1.09676106]
[1730638463943,0.0333,68530.0,68513.0,1.29899756]
[1730638464139,0.0333,68530.0,68529.0,0.433787]
[1730638465138,0.0443,68530.0,68529.0,0.433787]
[1730638465335,0.0443,68530.0,68529.0,0.47736073]
[1730638465531,0.0413,68530.0,68529.0,0.47736073]
[1730638465736,0.0523,68530.0,68529.0,0.433787]
[1730638466151,0.0523,68530.0,68529.0,0.47737395]
[1730638466445,0.0523,68530.0,68529.0,0.433787]
[1730638466647,0.0443,68530.0,68529.0,0.433787]
[1730638466850,0.0523,68530.0,68529.0,0.434787]
[1730638467945,0.0523,68530.0,68529.0,0.4928853]
[1730638468139,0.019,68530.0,68529.0,0.434787]
[1730638468543,0.019,68530.0,68529.0,0.5995397]
[1730638468946,0.019,68530.0,68529.0,0.52691682]
[1730638470945,0.019,68530.0,68529.0,0.434787]
[1730638471446,0.05854448,68530.0,68529.0,0.434787]
[1730638471648,0.05854448,68530.0,68529.0,0.4787785]
[1730638473153,0.019,68530.0,68529.0,0.4787785]
[1730638473540,0.0638,68546.0,68545.0,0.07297]
[1730638473741,0.15016877,68546.0,68545.0,0.79457]
[1730638473944,0.10376617,68546.0,68545.0,0.79457]
[1730638474154,0.07086617,68546.0,68545.0,0.79457]
[1730638474453,0.03996617,68546.0,68545.0,0.79457]
[1730638474748,0.00218891,68550.0,68549.0,0.072966]
[1730638475145,0.04239078,68550.0,68549.0,0.072966]
[1730638475554,0.00218891,68550.0,68549.0,0.072966]
[1730638476050,0.05222859,68550.0,68549.0,0.072966]
[1730638476251,0.01218891,68550.0,68549.0,0.072966]
[1730638477541,0.01218891,68550.0,68549.0,0.073966]
[1730638477745,0.01818891,68550.0,68549.0,0.073966]
[1730638481056,0.01218891,68550.0,68549.0,0.074966]
[1730638482048,0.00318891,68550.0,68549.0,0.072966]
[1730638482255,0.00318891,68550.0,68549.0,0.077966]
[1730638482652,0.00218891,68550.0,68549.0,0.079966]
[1730638486055,0.0625,68563.0,68549.0,0.079966]
[1730638486247,0.0625,68563.0,68562.0,0.433752]
[1730638487050,0.105445,68569.0,68562.0,0.3608]
[1730638487251,0.105445,68569.0,68567.0,0.072946]
[1730638487550,0.07678992,68569.0,68568.0,0.433745]
[1730638487755,0.00218818,68583.0,68580.0,0.072933]
[1730638487954,0.06608818,68583.0,68575.0,0.3608]
[1730638488268,0.09858818,68583.0,68581.0,0.433731]
[1730638488465,0.17151818,68583.0,68581.0,0.433731]
[1730638488854,0.07293,68582.0,68581.0,0.433731]
[1730638489973,0.07293,68582.0,68581.0,0.3608]
[1730638490155,0.10658818,68583.0,68578.0,0.072934]
[1730638490365,0.072934,68579.0,68578.0,0.072934]
[1730638491650,0.086934,68579.0,68578.0,0.073934]
[1730638493754,0.086934,68579.0,68578.0,0.001]
[1730638494166,0.072938,68575.0,68573.0,0.07238629]
[1730638494361,0.14347854,68574.0,68573.0,0.07238629]
[1730638494570,0.21641754,68574.0,68573.0,0.07238629]
[1730638495255,0.072943,68570.0,68569.0,0.072943]
[1730638495566,0.12076918,68570.0,68569.0,0.072943]
[1730638495755,0.2150445,68570.0,68569.0,0.072943]
[1730638496561,0.35995666,68570.0,68569.0,0.072943]
[1730638497660,0.2200445,68570.0,68569.0,0.072943]
[1730638498059,0.2280445,68570.0,68569.0,0.072943]
[1730638498866,0.1551015,68570.0,68567.0,0.24603371]
[1730638499060,0.072945,68568.0,68567.0,0.24603371]
[1730638499369,0.36012005,68568.0,68567.0,0.24603371]
[1730638499766,0.2150465,68568.0,68567.0,0.24603371]
[1730638500267,0.2150465,68568.0,68567.0,0.31897971]
[1730638501065,0.072945,68568.0,68567.0,0.31897971]
[1730638501476,0.075945,68568.0,68567.0,0.31897971]
[1730638501772,0.081945,68568.0,68567.0,0.31897971]
[1730638505061,0.009,68568.0,68561.0,0.0008]
[1730638505268,0.072953,68561.0,68560.0,0.3608]
[1730638506968,0.072953,68561.0,68560.0,0.3618]
[1730638507271,0.072953,68561.0,68560.0,0.001]
[1730638508174,0.15846485,68561.0,68560.0,0.001]
[1730638509175,0.15846485,68561.0,68560.0,0.004]
[1730638509967,0.59602485,68561.0,68560.0,0.004]
[1730638511074,0.59544022,68561.0,68560.0,0.004]
[1730638511677,0.59544022,68561.0,68560.0,0.001]
[1730638511872,0.07296,68554.0,68553.0,0.00218765]
[1730638512175,0.11225911,68554.0,68553.0,0.00218765]
[1730638512565,0.11228247,68554.0,68553.0,0.00218765]
[1730638513668,0.11228247,68554.0,68553.0,0.00518765]
[1730638513882,0.07296,68554.0,68553.0,0.07814865]
[1730638515079,0.072943,68571.0,68553.0,0.00518765]
[1730638515262,0.072957,68558.0,68557.0,0.433756]
[1730638515662,0.03965978,68558.0,68557.0,0.433757]
[1730638516279,0.072952,68563.0,68562.0,0.072952]
[1730638516879,0.10508,68566.0,68565.0,0.072949]
[1730638516880,0.09708,68566.0,68565.0,0.072949]
[1730638517377,0.004,68566.0,68565.0,0.072949]
[1730638517775,0.076947,68566.0,68565.0,0.072949]
[1730638518967,0.072947,68566.0,68565.0,0.072949]
[1730638519575,0.080947,68566.0,68565.0,0.072949]
[1730638520284,0.084947,68566.0,68565.0,0.072949]
[1730638526078,0.012,68566.0,68560.0,0.3608]
[1730638526380,0.072953,68562.0,68561.0,0.072952]
[1730638528472,0.076953,68562.0,68561.0,0.072952]
[1730638529483,0.072953,68562.0,68561.0,0.072952]
[1730638530288,0.073953,68562.0,68561.0,0.072952]
[1730638530587,0.072955,68559.0,68558.0,0.0661]
[1730638530877,0.072961,68553.0,68552.0,0.433762]
[1730638531674,0.15777527,68553.0,68552.0,0.433762]
[1730638531875,0.20959198,68553.0,68552.0,0.433762]
[1730638532482,0.21059198,68553.0,68552.0,0.3638]
[1730638534186,0.21059198,68553.0,68552.0,0.014]
[1730638535290,0.21059198,68553.0,68552.0,0.008]
[1730638535475,0.20959198,68553.0,68552.0,0.008]
[1730638535676,0.15777527,68553.0,68552.0,0.008]
[1730638536380,0.20960831,68553.0,68552.0,0.008]
[1730638537689,0.20956253,68553.0,68552.0,0.008]
[1730638538285,0.072961,68553.0,68552.0,0.008]
[1730638538679,0.072961,68553.0,68552.0,0.080962]
[1730638540079,0.0021884,68567.0,68552.0,0.008]
[1730638540275,0.072959,68557.0,68556.0,0.072957]
[1730638541690,0.073959,68557.0,68556.0,0.072957]
[1730638542883,0.073959,68557.0,68556.0,0.074957]
[1730638544584,0.073959,68557.0,68556.0,0.002]
[1730638546585,0.1589477,68557.0,68556.0,0.002]
[1730638546785,0.21094243,68557.0,68556.0,0.002]
[1730638547189,0.21094243,68557.0,68556.0,0.074958]
[1730638547394,0.1589477,68557.0,68556.0,0.435758]
[1730638547898,0.0859887,68557.0,68556.0,0.435758]
[1730638550790,0.0859887,68557.0,68556.0,0.074958]
[1730638551695,0.1589457,68557.0,68556.0,0.002]
[1730638553292,0.073957,68557.0,68556.0,0.002]
[1730638561297,0.12010552,68557.0,68556.0,0.002]
[1730638561498,0.21240255,68557.0,68556.0,0.002]
[1730638562501,0.35812293,68557.0,68556.0,0.002]
[1730638562701,0.21240255,68557.0,68556.0,0.002]
[1730638564599,0.21257793,68557.0,68556.0,0.002]
[1730638565902,0.21257793,68557.0,68556.0,0.074958]
[1730638567697,0.21257793,68557.0,68556.0,0.002]
[1730638568301,0.073957,68557.0,68556.0,0.002]
[1730638574109,0.073957,68557.0,68556.0,0.074958]
[1730638577907,0.073957,68557.0,68556.0,0.435758]
[1730638578308,0.001,68557.0,68556.0,0.4793595]
[1730638578511,0.001,68557.0,68556.0,0.435758]
[1730638578812,0.001,68557.0,68556.0,0.47931855]
[1730638579508,0.001,68557.0,68556.0,0.435758]
[1730638579816,0.0932,68562.0,68561.0,0.072953]
[1730638580614,0.13665824,68562.0,68561.0,0.072953]
[1730638580915,0.20961024,68562.0,68561.0,0.072953]
[1730638581307,0.21561024,68562.0,68561.0,0.072953]
[1730638581803,0.21861024,68562.0,68561.0,0.072953]
[1730638583415,0.42125901,68562.0,68561.0,0.072953]
[1730638585812,0.35847184,68562.0,68561.0,0.072953]
[1730638587509,0.42135102,68562.0,68561.0,0.072953]
[1730638587710,0.58178151,68562.0,68561.0,0.072953]
[1730638588117,0.51890233,68562.0,68561.0,0.072953]
[1730638588322,0.5817724,68562.0,68561.0,0.072953]
[1730638589324,0.51890233,68562.0,68561.0,0.072953]
[1730638589521,0.5816751,68562.0,68561.0,0.072953]
[1730638589725,0.42124461,68562.0,68561.0,0.072953]
[1730638591523,0.25876412,68562.0,68561.0,0.072953]
[1730638591726,0.21861024,68562.0,68561.0,0.072953]
[1730638595529,0.25875314,68562.0,68561.0,0.072953]
[1730638598429,0.35836716,68562.0,68561.0,0.03387963]
[1730638598627,0.42109533,68562.0,68561.0,0.03387963]
[1730638601631,0.41997674,68562.0,68561.0,0.03387963]
[1730638603134,0.34702474,68562.0,68560.0,0.3608]
[1730638603334,0.2743195,68561.0,68560.0,0.433754]
[1730638603933,0.43482324,68561.0,68560.0,0.433754]
[1730638604825,0.2743195,68561.0,68560.0,0.072954]
[1730638605024,0.2743195,68561.0,68560.0,0.433754]
[1730638605839,0.2793195,68561.0,68560.0,0.433754]
[1730638606232,0.2793195,68561.0,68560.0,0.072954]
[1730638606531,0.2793195,68561.0,68560.0,0.433754]
[1730638606532,0.11775568,68561.0,68560.0,0.433754]
[1730638607142,0.11775568,68561.0,68560.0,0.072954]
[1730638607435,0.11975568,68561.0,68560.0,0.433754]
[1730638607741,0.11975568,68561.0,68560.0,0.3608]
[1730638610739,0.11953667,68561.0,68560.0,0.3608]
[1730638611332,0.072956,68558.0,68557.0,0.0015]
[1730638611641,0.11245157,68558.0,68557.0,0.0015]
[1730638612941,0.11445157,68558.0,68557.0,0.0025]
[1730638615347,0.11437966,68558.0,68557.0,0.0025]
[1730638618743,0.11443204,68558.0,68557.0,0.0025]
[1730638620136,0.20687204,68558.0,68557.0,0.0025]
[1730638620840,0.167396,68558.0,68557.0,0.075457]
[1730638621048,0.09444,68558.0,68557.0,0.075457]
[1730638621749,0.18028113,68558.0,68557.0,0.075457]
[1730638622245,0.25323713,68558.0,68557.0,0.075457]
[1730638624138,0.16079713,68558.0,68557.0,0.075457]
[1730638625743,0.16079713,68558.0,68557.0,0.436257]
[1730638627347,0.16097954,68558.0,68557.0,0.436257]
[1730638628449,0.16097954,68558.0,68557.0,0.466457]
[1730638628647,0.074956,68558.0,68557.0,0.466457]
[1730638633341,0.074956,68558.0,68557.0,0.105657]
[1730638633656,0.074956,68558.0,68557.0,0.466457]
[1730638633950,0.074956,68558.0,68557.0,0.105657]
[1730638634151,0.074956,68558.0,68557.0,0.466457]
[1730638635043,0.074956,68558.0,68557.0,0.436257]
[1730638635356,0.074956,68558.0,68557.0,0.3633]
[1730638636648,0.21348448,68558.0,68557.0,0.3633]
[1730638642662,0.21348448,68558.0,68557.0,0.0025]
[1730638643175,0.21348448,68558.0,68557.0,0.3633]
[1730638643659,0.074956,68558.0,68557.0,0.3633]
[1730638644764,0.074956,68558.0,68557.0,0.0025]
[1730638645060,0.074956,68558.0,68557.0,0.3633]
[1730638645272,0.074956,68558.0,68557.0,0.436257]
[1730638649266,0.074956,68558.0,68557.0,0.3633]
[1730638652264,0.12144236,68558.0,68557.0,0.3633]
[1730638652460,0.16148067,68558.0,68557.0,0.3633]
[1730638653260,0.16148067,68558.0,68557.0,0.0025]
[1730638654967,0.21417106,68558.0,68557.0,0.0025]
[1730638657360,0.16148067,68558.0,68557.0,0.0025]
[1730638658561,0.59908067,68558.0,68557.0,0.0025]
[1730638658765,0.512556,68558.0,68557.0,0.0025]
[1730638659571,0.574256,68558.0,68557.0,0.0025]
[1730638663969,0.666696,68558.0,68557.0,0.0025]
[1730638665267,0.136656,68558.0,68557.0,0.0025]
[1730638665470,0.167396,68558.0,68557.0,0.0025]
[1730638666368,0.074956,68558.0,68557.0,0.0025]
[1730638666585,0.167396,68558.0,68557.0,0.0025]
[1730638668869,0.167396,68558.0,68557.0,0.04602691]
[1730638669071,0.167396,68558.0,68557.0,0.0025]
[1730638671070,0.167396,68558.0,68557.0,0.3633]
[1730638672777,0.167396,68558.0,68557.0,0.40676274]
[1730638673971,0.08809274,68558.0,68557.0,0.436257]
[1730638674174,0.18053274,68558.0,68557.0,0.436257]
[1730638674879,0.08809274,68558.0,68557.0,0.436257]
[1730638675472,0.16104874,68558.0,68557.0,0.436257]
[1730638677875,0.1612109,68558.0,68557.0,0.436257]
[1730638679474,0.1612109,68558.0,68557.0,0.075457]
[1730638679675,0.1612109,68558.0,68557.0,0.436257]
[1730638681279,0.16119751,68558.0,68557.0,0.436257]
[1730638681780,0.074956,68558.0,68557.0,0.436257]
[1730638688672,0.074956,68558.0,68557.0,0.075457]